Workbook

Sheet Sheet1
A1: green boy | D1: red boy | G1: orange boy | J1: blue boy | M1: yellow boy | P1: Brown boy | S1: Date
A2: Grams | B2: lbs/0z | C2: % +/- | D2: Grams | E2: lbs/oz | F2: % +/- | G2: Grams | H2: lbs/oz | I2: % +/- | J2: Grams | K2: lbs/oz | L2: % +/- | M2: Grams | N2: lbs/oz | O2: % +/- | P2: Grams | Q2: lbs/oz | R2: % +/-
A3: 447 | B3: =A3*0.0352739619 -> 15.76746097 | D3: 365 | E3: =D3*0.0352739619 -> 12.87499609 | G3: 370 | H3: =G3*0.0352739619 -> 13.0513659 | J3: 357 | K3: =J3*0.0352739619 -> 12.5928044 | M3: 353 | N3: =M3*0.0352739619 -> 12.45170855 | P3: 307 | Q3: =P3*0.0352739619 -> 10.8291063 | S3: 2013-04-25 | T3: 1344 | U3: 1344
A4: 444 | B4: =A4*0.0352739619 -> 15.66163908 | C4: =((A4-A3)/A3) -> -0.006711409396 | D4: 380 | E4: =D4*0.0352739619 -> 13.40410552 | F4: =((D4-D3)/D3) -> 0.04109589041 | G4: 390 | H4: =G4*0.0352739619 -> 13.75684514 | I4: =((G4-G3)/G3) -> 0.05405405405 | J4: 382 | K4: =J4*0.0352739619 -> 13.47465345 | L4: =((J4-J3)/J3) -> 0.0700280112 | M4: 336 | N4: =M4*0.0352739619 -> 11.8520512 | O4: =(M4-M3)/M3 -> -0.04815864023 | P4: 321 | Q4: =P4*0.0352739619 -> 11.32294177 | R4: =((P4-P3)/P3) -> 0.04560260586 | S4: 2013-04-26 | T4: 10:54:00 | U4: 10:54:00
A5: 499 | B5: =A5*0.0352739619/16 -> 1.100106687 | C5: =((A5-A4)/A4) -> 0.1238738739 | D5: 425 | E5: =D5*0.0352739619/16 -> 0.936964613 | F5: =((D5-D4)/D4) -> 0.1184210526 | G5: 448 | H5: =G5*0.0352739619/16 -> 0.9876709332 | I5: =((G5-G4)/G4) -> 0.1487179487 | J5: 428 | K5: =J5*0.0352739619 -> 15.09725569 | L5: =((J5-J4)/J4) -> 0.1204188482 | M5: 390 | N5: =M5*0.0352739619 -> 13.75684514 | O5: =(M5-M4)/M4 -> 0.1607142857 | P5: 350 | Q5: =P5*0.0352739619 -> 12.34588666 | R5: =((P5-P4)/P4) -> 0.09034267913 | S5: 2013-04-27 | T5: 12:22:00 | U5: 12:22:00
A6: 531 | B6: =A6*0.0352739619/16 -> 1.170654611 | C6: 0.06412825651 | D6: 489 | E6: =D6*0.0352739619/16 -> 1.078060461 | F6: 0.1505882353 | G6: 481 | H6: =G6*0.0352739619/16 -> 1.06042348 | I6: 0.07366071429 | J6: 460 | K6: =J6*0.0352739619/16 -> 1.014126405 | L6: 0.07476635514 | M6: 423 | N6: =M6*0.0352739619/16 -> 0.9325553677 | O6: 0.08461538462 | P6: 390 | Q6: =P6*0.0352739619/16 -> 0.8598028213 | R6: 0.1142857143 | S6: 2013-04-28 | T6: 12:24:00 | U6: 12:24:00
A7: 623 | B7: =A7*0.0352739619/16 -> 1.373479891 | C7: 0.1732580038 | D7: 539 | E7: 1.188291592 | F7: 0.1022494888 | G7: 540 | H7: 1.190496214 | I7: 0.1226611227 | J7: 528 | K7: =J7*0.0352739619 -> 18.62465188 | L7: 0.147826087 | M7: 480 | N7: =M7*0.0352739619/16 -> 1.058218857 | O7: 0.134751773 | P7: 428 | Q7: 0.9435784808 | R7: 0.09743589744 | S7: 2013-04-29 | T7: 17:19:00 | U7: 17:19:00
A8: 651 | B8: =A8*0.0352739619/16 -> 1.435209325 | C8: 0.04494382022 | D8: 596 | E8: 1.313955081 | F8: 0.1057513915 | G8: 562 | H8: 1.238997912 | I8: 0.04074074074 | J8: 547 | K8: =J8*0.0352739619/16 -> 1.205928572 | L8: 0.03598484848 | M8: 525 | N8: 1.157426875 | O8: 0.09375 | P8: 462 | Q8: 1.01853565 | R8: 0.07943925234 | S8: 2013-04-30 | T8: 13:29:00 | U8: 13:29:00
A9: 718 | B9: =A9*0.0352739619/16 -> 1.58291904 | C9: 0.1029185868 | D9: 646 | E9: 1.424186212 | F9: 0.08389261745 | G9: 623 | H9: 1.373479891 | I9: 0.1085409253 | J9: 583 | K9: =J9*0.0352739619/16 -> 1.285294987 | L9: 0.06581352834 | M9: 556 | N9: 1.225770176 | O9: 0.05904761905 | P9: 494 | Q9: 1.089083574 | R9: 0.06926406926 | S9: 2013-05-01 | T9: 15:41:00 | U9: 15:41:00
A10: 755 | B10: 1.664490077 | C10: 0.05153203343 | D10: 670 | E10: 1.477097155 | F10: 0.03715170279 | G10: 655 | H10: 1.444027815 | I10: 0.05136436597 | J10: 632 | K10: 1.393321495 | L10: 0.08404802744 | M10: 590 | N10: 1.300727345 | O10: 0.06115107914 | P10: 518 | Q10: 1.141994517 | R10: 0.04858299595 | S10: 2013-05-02 | T10: 16:12:00 | U10: 16:12:00
A11: 778 | B11: 1.715196397 | C11: 0.03046357616 | D11: 715 | E11: 1.576305172 | F11: 0.0671641791 | G11: 700 | H11: 1.543235833 | I11: 0.06870229008 | J11: 654 | K11: 1.441823193 | L11: 0.03481012658 | M11: 630 | N11: 1.38891225 | O11: 0.06779661017 | P11: 581 | Q11: 1.280885741 | R11: 0.1216216216 | S11: 2013-05-03 | T11: 12:43:00 | U11: 12:43:00
A12: 853 | B12: 1.880543094 | C12: 0.09640102828 | D12: 755 | E12: 1.664490077 | F12: 0.05594405594 | G12: 736 | H12: 1.622602247 | I12: 0.05142857143 | J12: 705 | K12: 1.554258946 | L12: 0.07798165138 | M12: 661 | N12: 1.457255551 | O12: 0.04920634921 | P12: 599 | Q12: 1.320568949 | R12: 0.03098106713 | S12: 2013-05-04 | T12: 11:00:00 | U12: 11:00:00
A13: 871 | B13: 1.920226301 | C13: 0.02110199297 | D13: 794 | E13: 1.750470359 | F13: 0.05165562914 | G13: 805 | H13: 1.774721208 | I13: 0.09375 | J13: 761 | K13: 1.677717813 | L13: 0.07943262411 | M13: 702 | N13: 1.547645078 | O13: 0.06202723147 | P13: 654 | Q13: 1.441823193 | R13: 0.0918196995 | S13: 2013-05-05 | T13: 10:32:00 | U13: 10:32:00
A14: 946 | B14: 2.085572997 | C14: 0.08610792193 | D14: 836 | E14: 1.843064509 | F14: 0.05289672544 | G14: 875 | H14: 1.929044791 | I14: 0.08695652174 | J14: 779 | K14: 1.71740102 | L14: 0.02365308804 | M14: 782 | N14: 1.724014888 | O14: 0.113960114 | P14: 730 | Q14: 1.609374512 | R14: 0.1162079511 | S14: 2013-05-06 | T14: 17:00:00 | U14: 17:00:00
A15: 980 | B15: 2.160530166 | C15: 0.03594080338 | D15: 902 | E15: 1.988569602 | F15: 0.07894736842 | G15: 936 | H15: 2.063526771 | I15: 0.06971428571 | J15: 821 | K15: 1.80999517 | L15: 0.05391527599 | M15: 821 | N15: 1.80999517 | O15: 0.04987212276 | P15: 781 | Q15: 1.721810265 | R15: 0.0698630137 | S15: 2013-05-07 | T15: 18:00:00

Sheet Sheet2

Sheet Sheet3
